fUSD/lending_fUSD_20240117
["ID","MTS","AMOUNT","RATE_DAILY","PERIOD"]
[311865510,1705479038043,-272.65176172,0.00021109,2]
[311865511,1705479038053,-272.65176172,0.00021174,2]
[311865513,1705479038063,-272.65176172,0.0002124,2]
[311865515,1705479038073,-158.76,0.00021246,2]
[311865517,1705479038082,-207.0,0.0002125,2]
[311865519,1705479038092,-95.85402684,0.00021305,2]
[311865532,1705479038221,-176.79773488,0.00021305,2]
[311865534,1705479038231,-156.64,0.00021359,2]
[311865536,1705479038240,-26.73686814,0.00021371,2]
[311865538,1705479038253,-245.91489358,0.00021371,2]
[311865540,1705479038262,-150.78,0.00021377,2]
[311865542,1705479038272,-165.01,0.00021395,2]
[311865544,1705479038282,-277.54,0.00021401,2]
[311865546,1705479038292,-272.65176172,0.00021436,2]
[311865548,1705479038302,-2695.16122602,0.00021436,2]
[311865550,1705479038314,-5934.20077398,0.00021436,2]
[311865552,1705479038323,-272.65176172,0.00021502,2]
[311865554,1705479038332,-551.37931886,0.00021516,2]
[311865556,1705479038342,-178.079,0.00021517,2]
[311865558,1705479038351,-130.60444976,0.00021517,2]
[311865561,1705479038376,-1326.8239701,0.00021517,2]
[311865565,1705479038403,-395.2299961,0.00021517,2]
[311865567,1705479038415,-543.6310116,0.00021517,2]
[311865570,1705479038433,-534.49791939,0.00021517,2]
[311865574,1705479038462,-8552.77002624,0.00021517,2]
[311865576,1705479038474,-11000.0,0.00021517,2]
[311865578,1705479038485,-4500.0,0.00021517,2]
[311865580,1705479038497,-951.26132272,0.00021517,2]
[311865582,1705479038508,-273.3836681,0.00021517,2]
[311865584,1705479038519,-350.26905264,0.00021517,2]
[311865587,1705479038539,-398.50558973,0.00021517,2]
[311865590,1705479038551,-44704.25589362,0.00021517,2]
[311865592,1705479038560,-272.65176172,0.00021567,2]
[311865593,1705479038569,-166.37385207,0.00021597,4]
[311865595,1705479038578,-1422.45329618,0.00021608,2]
[311865597,1705479038588,-1014.37412027,0.00021633,3]
[311865599,1705479038597,-272.65176172,0.00021633,2]
[311865601,1705479038606,-295.69,0.00021644,2]
[311865603,1705479038615,-150.78,0.00021645,2]
[311865605,1705479038624,-1138.0,0.00021698,2]
[311865607,1705479038633,-272.65176172,0.00021698,2]
[311865609,1705479038642,-150.61,0.00021741,2]
[311865611,1705479038653,-272.65176172,0.00021764,2]
[311865613,1705479038662,-538.0715866,0.00021815,7]
[311865615,1705479038671,-289.7613923,0.00021815,2]
[311865617,1705479038680,-653.92,0.00021816,2]
[311865619,1705479038689,-250.0,0.00021817,2]
[311865621,1705479038698,-17308.23010701,0.00021817,2]
[311865623,1705479038710,-13726.92838059,0.00021817,2]
[311865740,1705479039909,-855.30664726,0.00021717,2]
[311865743,1705479039920,-532.20015401,0.00021717,2]
[311865747,1705479039950,-250.5,0.00021717,2]
[311865801,1705479040460,-32368.13439873,0.00021717,2]
[311865803,1705479040469,-112847.91570391,0.00021817,2]
[311865820,1705479040616,-2717.76879401,0.00021817,2]
[311865822,1705479040627,-1546.59130599,0.00021817,2]
[311865824,1705479040639,-551.45936331,0.00021817,2]
[311865827,1705479040661,-4382.23209643,0.00021817,2]
[311865830,1705479040674,-1104.43424814,0.00021817,2]
[311865832,1705479040685,-381.19675957,0.00021817,2]
[311865834,1705479040696,-287.27274001,0.00021817,2]
[311865836,1705479040707,-259.41654144,0.00021817,2]
[311865839,1705479040719,-558.59855038,0.00021817,2]
[311865843,1705479040749,-555.900003,0.00021817,2]
[311865846,1705479040762,-5610.39032302,0.00021817,2]
[311865848,1705479040774,-700.24778108,0.00021817,2]
[311865851,1705479040795,-19521.45362892,0.00021817,2]
[311865854,1705479040808,-10181.24615483,0.00021817,2]
[311865856,1705479040820,-17891.5678241,0.00021817,2]
[311865858,1705479040832,-514.06877968,0.00021817,2]
[311865860,1705479040845,-598.01165468,0.00021817,2]
[311865863,1705479040858,-1636.38332143,0.00021817,2]
[311865865,1705479040870,-650.71802324,0.00021817,2]
[311865867,1705479040881,-22172.38829488,0.00021817,2]
[311865870,1705479040893,-272.44258227,0.00021817,2]
[311865873,1705479040915,-3663.91385904,0.00021817,2]
[311865875,1705479040927,-824.1117,0.00021817,2]
[311865878,1705479040948,-1705.31673495,0.00021817,2]
[311866048,1705479042597,-2829.79474409,0.00021817,2]
[311866050,1705479042607,-6610.34219277,0.00021817,2]
[311866051,1705479042622,-12946.2,0.00021817,2]
[311866052,1705479042666,-436.58,0.00021815,2]
[311866053,1705479042676,-26602.46867214,0.00021817,2]
[311866054,1705479042696,-9395.98913509,0.00021817,2]
[311866055,1705479042705,-272.65176172,0.00021829,2]
[311866057,1705479042714,-1422.45329618,0.00021886,2]
[311866059,1705479042724,-272.65176172,0.00021895,2]
[311866061,1705479042734,-1000.0,0.00021916,2]
[311866063,1705479042744,-1000.0,0.00021916,2]
[311866065,1705479042753,-1000.0,0.00021916,2]
[311866067,1705479042762,-1000.0,0.00021916,2]
[311866069,1705479042772,-1000.0,0.00021916,2]
[311866072,1705479042781,-1000.0,0.00021916,2]
[311866074,1705479042791,-926.45744258,0.00021916,2]
[311866076,1705479042800,-701.0,0.00021917,2]
[311866078,1705479042810,-500.0,0.00021917,2]
[311866080,1705479042819,-500.0,0.00021917,2]
[311866082,1705479042828,-500.0,0.00021917,2]
[311866084,1705479042837,-502.62359724,0.00021917,2]
[311866086,1705479042846,-501.06542389,0.00021917,2]
[311866088,1705479042855,-500.0,0.00021917,2]
[311866090,1705479042865,-253.5082876,0.00021917,2]
[311866092,1705479042874,-242.23483506,0.00021917,2]
[311866094,1705479042883,-500.0,0.00021917,2]
[311866096,1705479042892,-502.73077177,0.00021917,2]
[311866098,1705479042901,-523.26776128,0.00021917,2]
[311866100,1705479042913,-592.70274864,0.00021917,2]
[311866102,1705479042922,-500.71066094,0.00021917,2]
[311866104,1705479042932,-502.58535758,0.00021917,2]
[311866106,1705479042941,-503.04350436,0.00021917,2]
[311866108,1705479042950,-505.19978508,0.00021917,2]
[311866110,1705479042960,-501.42759674,0.00021917,2]
[311866112,1705479042969,-505.32958725,0.00021917,2]
[311866114,1705479042978,-500.0,0.00021917,2]
[311866116,1705479042987,-1001.72106198,0.00021917,2]
[311866119,1705479042996,-502.01840116,0.00021917,2]
[311866121,1705479043006,-500.0,0.00021917,2]
[311866123,1705479043016,-504.50690864,0.00021917,2]
[311866125,1705479043025,-502.76078046,0.00021917,2]
[311866127,1705479043035,-503.29832905,0.00021917,2]
[311866129,1705479043044,-500.0,0.00021917,2]
[311866131,1705479043053,-500.0,0.00021917,2]
[311866133,1705479043063,-500.0,0.00021917,2]
[311866135,1705479043073,-500.0,0.00021917,2]
[311866137,1705479043083,-500.0,0.00021917,2]
[311866139,1705479043092,-500.0,0.00021917,2]
[311866141,1705479043102,-534.99337832,0.00021917,2]
[311866143,1705479043112,-500.0,0.00021917,2]
[311866145,1705479043123,-500.0,0.00021917,2]
[311866147,1705479043132,-626.75419257,0.00021917,2]
[311866150,1705479043142,-500.0,0.00021917,2]
[311866152,1705479043151,-500.0,0.00021917,2]
[311866154,1705479043164,-500.0,0.00021917,2]
[311866156,1705479043173,-894.58,0.00021917,2]
[311866158,1705479043183,-500.0,0.00021917,2]
[311866160,1705479043194,-500.0,0.00021917,2]
[311866162,1705479043203,-630.26,0.00021917,2]
[311866164,1705479043213,-500.0,0.00021917,2]
[311866166,1705479043222,-500.0,0.00021917,2]
[311866168,1705479043230,-500.0,0.00021917,2]
[311866169,1705479043239,-500.0,0.00021917,2]
[311866172,1705479043249,-5.92915933,0.00021917,2]
[311866175,1705479043273,-803.46084067,0.00021917,2]
[311866177,1705479043283,-500.0,0.00021917,2]
[311866179,1705479043294,-500.0,0.00021917,2]
[311866181,1705479043303,-1323.52,0.00021917,2]
[311866183,1705479043312,-500.0,0.00021917,2]
[311866185,1705479043322,-500.0,0.00021917,2]
[311866187,1705479043331,-500.0,0.00021917,2]
[311866189,1705479043342,-500.0,0.00021917,2]
[311866191,1705479043351,-500.0,0.00021917,2]
[311866193,1705479043361,-794.73,0.00021917,2]
[311866196,1705479043371,-517.58845987,0.00021917,2]
[311866198,1705479043380,-500.0,0.00021917,2]
[311866199,1705479043389,-500.0,0.00021917,2]
[311866202,1705479043398,-483.67710762,0.00021917,2]
[311866203,1705479043409,-500.0,0.00021917,2]
[311866206,1705479043419,-700.06,0.00021917,2]
[311866208,1705479043428,-500.0,0.00021917,2]
[311866210,1705479043437,-486.62010967,0.00021917,2]
[311866212,1705479043446,-500.0,0.00021917,2]
[311866214,1705479043456,-628.9,0.00021917,2]
[311866216,1705479043465,-500.0,0.00021917,2]
[311866218,1705479043474,-500.0,0.00021917,2]
[311866220,1705479043483,-503.76893879,0.00021917,2]
[311866222,1705479043492,-500.0,0.00021917,2]
[311866224,1705479043501,-500.0,0.00021917,2]
[311866226,1705479043510,-793.48,0.00021917,2]
[311866228,1705479043519,-500.0,0.00021917,2]
[311866230,1705479043529,-500.0,0.00021917,2]
[311866231,1705479043538,-500.0,0.00021917,2]
[311866234,1705479043547,-549.12460719,0.00021917,2]
[311866236,1705479043556,-500.0,0.00021917,2]
[311866238,1705479043566,-725.36,0.00021917,2]
[311866240,1705479043575,-500.0,0.00021917,2]
[311866242,1705479043584,-500.0,0.00021917,2]
[311866244,1705479043593,-722.48,0.00021917,2]
[311866245,1705479043602,-500.0,0.00021917,2]
[311866248,1705479043611,-611.64005379,0.00021917,2]
[311866250,1705479043621,-500.82183196,0.00021917,2]
[311866252,1705479043630,-500.0,0.00021917,2]
[311866254,1705479043639,-500.0,0.00021917,2]
[311866256,1705479043649,-500.0,0.00021917,2]
[311866258,1705479043660,-500.0,0.00021917,2]
[311866259,1705479043669,-500.0,0.00021917,2]
[311866262,1705479043679,-647.08,0.00021917,2]
[311866264,1705479043689,-500.0,0.00021917,2]
[311866265,1705479043698,-500.0,0.00021917,2]
[311866267,1705479043708,-500.0,0.00021917,2]
[311866270,1705479043717,-500.0,0.00021917,2]
[311866271,1705479043727,-500.0,0.00021917,2]
[311866274,1705479043737,-616.85,0.00021917,2]
[311866276,1705479043746,-541.04243902,0.00021917,2]
[311866278,1705479043755,-730.63,0.00021917,2]
[311866280,1705479043764,-500.0,0.00021917,2]
[311866282,1705479043774,-500.0,0.00021917,2]
[311866284,1705479043783,-583.94,0.00021917,2]
[311866286,1705479043792,-500.0,0.00021917,2]
[311866288,1705479043801,-500.0,0.00021917,2]
[311866290,1705479043811,-500.0,0.00021917,2]
[311866292,1705479043820,-542.2,0.00021917,2]
[311866294,1705479043830,-500.0,0.00021917,2]
[311866296,1705479043839,-500.0,0.00021917,2]
[311866298,1705479043849,-833.74,0.00021917,2]
[311866300,1705479043859,-500.0,0.00021917,2]
[311866302,1705479043868,-500.0,0.00021917,2]
[311866304,1705479043877,-317.79396936,0.00021917,2]
[311866306,1705479043886,-500.0,0.00021917,2]
[311866308,1705479043896,-500.0,0.00021917,2]
[311866310,1705479043905,-500.0,0.00021917,2]
[311866312,1705479043916,-680.88,0.00021917,2]
[311866314,1705479043926,-500.0,0.00021917,2]
[311866316,1705479043936,-500.0,0.00021917,2]
[311866318,1705479043945,-500.0,0.00021917,2]
[311866320,1705479043954,-500.0,0.00021917,2]
[311866322,1705479043963,-500.0,0.00021917,2]
[311866324,1705479043971,-567.32,0.00021917,2]
[311866326,1705479043981,-862.99,0.00021917,2]
[311866328,1705479043989,-500.0,0.00021917,2]
[311866330,1705479043999,-838.91,0.00021917,2]
[311866331,1705479044008,-500.0,0.00021917,2]
[311866333,1705479044017,-253.67936595,0.00021917,2]
[311866334,1705479044026,-500.0,0.00021917,2]
[311866335,1705479044036,-744.81,0.00021917,2]
[311866336,1705479044046,-513.44,0.00021917,2]
[311866337,1705479044055,-500.0,0.00021917,2]
[311866338,1705479044065,-250.0,0.00021917,2]
[311866339,1705479044074,-500.0,0.00021917,2]
[311866341,1705479044084,-500.0,0.00021917,2]
[311866343,1705479044094,-500.0,0.00021917,2]
[311866346,1705479044104,-500.0,0.00021917,2]
[311866348,1705479044114,-500.0,0.00021917,2]
[311866350,1705479044124,-500.0,0.00021917,2]
[311866352,1705479044133,-500.0,0.00021917,2]
[311866354,1705479044142,-500.0,0.00021917,2]
[311866356,1705479044152,-500.0,0.00021917,2]
[311866358,1705479044164,-500.0,0.00021917,2]
[311866360,1705479044174,-500.0,0.00021917,2]
[311866362,1705479044183,-500.0,0.00021917,2]
[311866364,1705479044191,-1008.58,0.00021917,2]
[311866366,1705479044203,-500.0,0.00021917,2]
[311866368,1705479044211,-500.0,0.00021917,2]
[311866370,1705479044220,-500.0,0.00021917,2]
[311866372,1705479044229,-500.0,0.00021917,2]
[311866374,1705479044238,-500.0,0.00021917,2]
[311866377,1705479044258,-324.76335996,0.00021917,2]
[311866379,1705479044270,-178.95863483,0.00021917,2]
[311866381,1705479044279,-500.0,0.00021917,2]
[311866383,1705479044290,-500.0,0.00021917,2]
[311866385,1705479044300,-500.0,0.00021917,2]
[311866388,1705479044310,-500.0,0.00021917,2]
[311866390,1705479044319,-500.0,0.00021917,2]
[311866392,1705479044329,-500.0,0.00021917,2]
[311866394,1705479044338,-500.0,0.00021917,2]
[311866396,1705479044348,-662.88,0.00021917,2]
[311866398,1705479044358,-992.61,0.00021917,2]
[311866400,1705479044368,-500.0,0.00021917,2]
[311866402,1705479044378,-594.12,0.00021917,2]
[311866404,1705479044388,-500.0,0.00021917,2]
[311866406,1705479044398,-815.57,0.00021917,2]
[311866408,1705479044407,-500.0,0.00021917,2]
[311866410,1705479044417,-500.0,0.00021917,2]
[311866412,1705479044427,-500.0,0.00021917,2]
[311866414,1705479044436,-767.02,0.00021917,2]
[311866416,1705479044446,-500.0,0.00021917,2]
[311866419,1705479044457,-500.0,0.00021917,2]
[311866421,1705479044466,-826.27,0.00021917,2]
[311866423,1705479044476,-500.0,0.00021917,2]
[311866425,1705479044485,-500.0,0.00021917,2]
[311866427,1705479044495,-609.17,0.00021917,2]
[311866429,1705479044505,-642.84,0.00021917,2]
[311866431,1705479044515,-1175.92,0.00021917,2]
[311866433,1705479044524,-897.96,0.00021917,2]
[311866435,1705479044534,-1399.44,0.00021917,2]
[311866437,1705479044543,-500.0,0.00021917,2]
[311866439,1705479044553,-1174.58,0.00021917,2]
[311866441,1705479044563,-500.0,0.00021917,2]
[311866443,1705479044573,-500.0,0.00021917,2]
[311866446,1705479044583,-500.0,0.00021917,2]
[311866448,1705479044593,-500.0,0.00021917,2]
[311866450,1705479044603,-1337.31,0.00021917,2]
[311866452,1705479044612,-500.0,0.00021917,2]
[311866454,1705479044622,-500.0,0.00021917,2]
[311866456,1705479044631,-527.02,0.00021917,2]
[311866458,1705479044640,-500.0,0.00021917,2]
[311866460,1705479044650,-500.0,0.00021917,2]
[311866462,1705479044660,-500.0,0.00021917,2]
[311866464,1705479044670,-500.0,0.00021917,2]
[311866466,1705479044679,-1364.97,0.00021917,2]
[311866468,1705479044689,-500.0,0.00021917,2]
[311866470,1705479044698,-500.0,0.00021917,2]
[311866472,1705479044707,-500.0,0.00021917,2]
[311866474,1705479044717,-500.0,0.00021917,2]
[311866476,1705479044727,-855.6,0.00021917,2]
[311866478,1705479044736,-500.0,0.00021917,2]
[311866495,1705479044875,-1000.0,0.00021917,7]
[311866497,1705479044884,-621.64,0.00021917,2]
[311866499,1705479044893,-500.0,0.00021917,2]
[311866501,1705479044903,-500.0,0.00021917,2]
[311866503,1705479044913,-1008.11,0.00021917,2]
[311866505,1705479044924,-500.0,0.00021917,2]
[311866507,1705479044936,-500.0,0.00021917,2]
[311866509,1705479044945,-500.0,0.00021917,2]
[311866511,1705479044953,-955.89,0.00021917,2]
[311866513,1705479044963,-500.0,0.00021917,2]
[311866515,1705479044972,-500.0,0.00021917,2]
[311866517,1705479044980,-511.24641922,0.00021917,2]
[311866519,1705479044989,-719.05,0.00021917,2]
[311866521,1705479044998,-500.0,0.00021917,2]
[311866523,1705479045007,-577.89,0.00021917,2]
[311866525,1705479045017,-500.0,0.00021917,2]
[311866527,1705479045026,-622.45,0.00021917,2]
[311866529,1705479045035,-536.63,0.00021917,2]
[311866531,1705479045045,-500.0,0.00021917,2]
[311866533,1705479045054,-578.93,0.00021917,2]
[311866535,1705479045065,-500.0,0.00021917,2]
[311866537,1705479045075,-500.0,0.00021917,2]
[311866539,1705479045085,-500.0,0.00021917,2]
[311866541,1705479045095,-500.0,0.00021917,2]
[311866543,1705479045105,-500.0,0.00021917,2]
[311866545,1705479045116,-491.634641,0.00021917,2]
[311866547,1705479045126,-500.0,0.00021917,2]
[311866549,1705479045136,-1757.04,0.00021917,2]
[311866551,1705479045146,-500.0,0.00021917,2]
[311866553,1705479045157,-503.68148039,0.00021917,2]
[311866555,1705479045172,-821.25,0.00021917,2]
[311866558,1705479045182,-500.0,0.00021917,2]
[311866560,1705479045193,-500.0,0.00021917,2]
[311866562,1705479045203,-889.62,0.00021917,2]
[311866564,1705479045212,-601.82,0.00021917,2]
[311866566,1705479045221,-520.48972867,0.00021917,2]
[311866568,1705479045230,-500.0,0.00021917,2]
[311866569,1705479045239,-500.0,0.00021917,2]
[311866572,1705479045248,-650.76,0.00021917,2]
[311866574,1705479045258,-500.0,0.00021917,2]
[311866575,1705479045267,-500.0,0.00021917,2]
[311866577,1705479045276,-500.0,0.00021917,2]
[311866578,1705479045285,-1036.69,0.00021917,2]
[311866579,1705479045294,-500.0,0.00021917,2]
[311866581,1705479045303,-500.0,0.00021917,2]
[311866582,1705479045312,-500.0,0.00021917,2]
[311866583,1705479045321,-211.82990227,0.00021917,2]
[311866585,1705479045330,-650.82,0.00021917,2]
[311866586,1705479045339,-500.0,0.00021917,2]
[311866589,1705479045348,-1158.31,0.00021917,2]
[311866592,1705479045358,-857.89,0.00021917,2]
[311866595,1705479045368,-500.0,0.00021917,2]
[311866597,1705479045377,-500.0,0.00021917,2]
[311866598,1705479045387,-500.0,0.00021917,2]
[311866600,1705479045396,-500.0,0.00021917,2]
[311866602,1705479045406,-500.0,0.00021917,2]
[311866605,1705479045418,-500.0,0.00021917,2]
[311866607,1705479045427,-500.0,0.00021917,2]
[311866610,1705479045437,-880.89,0.00021917,2]
[311866612,1705479045446,-500.0,0.00021917,2]
[311866614,1705479045455,-500.0,0.00021917,2]
[311866616,1705479045465,-500.0,0.00021917,2]
[311866619,1705479045474,-498.39335317,0.00021917,2]
[311866620,1705479045483,-267.81284201,0.00021917,2]
[311866622,1705479045492,-500.0,0.00021917,2]
[311866625,1705479045502,-1038.04,0.00021917,2]
[311866626,1705479045511,-688.1,0.00021917,2]
[311866629,1705479045521,-1521.26,0.00021917,2]
[311866630,1705479045530,-500.0,0.00021917,2]
[311866632,1705479045539,-500.0,0.00021917,2]
[311866635,1705479045549,-514.22826431,0.00021917,2]
[311866637,1705479045558,-588.46,0.00021917,2]
[311866638,1705479045566,-1197.09,0.00021917,2]
[311866640,1705479045576,-500.0,0.00021917,2]
[311866642,1705479045585,-764.06,0.00021917,2]
[311866644,1705479045594,-385.12141845,0.00021917,2]
[311866646,1705479045604,-500.0,0.00021917,2]
[311866648,1705479045613,-1917.82,0.00021917,2]
[311866650,1705479045622,-500.0,0.00021917,2]
[311866652,1705479045631,-500.0,0.00021917,2]
[311866654,1705479045640,-725.13,0.00021917,2]
[311866656,1705479045650,-500.0,0.00021917,2]
[311866658,1705479045661,-513.08,0.00021917,2]
[311866661,1705479045670,-500.0,0.00021917,2]
[311866662,1705479045679,-580.14,0.00021917,2]
[311866664,1705479045688,-500.0,0.00021917,2]
[311866666,1705479045697,-549.02234614,0.00021917,2]
[311866668,1705479045706,-500.0,0.00021917,2]
[311866670,1705479045716,-500.0,0.00021917,2]
[311866672,1705479045725,-568.68,0.00021917,2]
[311866675,1705479045735,-517.44,0.00021917,2]
[311866677,1705479045745,-658.49,0.00021917,2]
[311866678,1705479045754,-796.58,0.00021917,2]
[311866680,1705479045764,-500.0,0.00021917,2]
[311866682,1705479045774,-500.0,0.00021917,2]
[311866684,1705479045784,-881.96,0.00021917,2]
[311866687,1705479045793,-500.0,0.00021917,2]
[311866688,1705479045803,-1314.32,0.00021917,2]
[311866691,1705479045813,-500.0,0.00021917,2]
[311866693,1705479045822,-651.19,0.00021917,2]
[311866695,1705479045831,-873.77,0.00021917,2]
[311866697,1705479045841,-1263.6,0.00021917,2]
[311866699,1705479045850,-855.09,0.00021917,2]
[311866701,1705479045859,-500.0,0.00021917,2]
[311866703,1705479045869,-679.4,0.00021917,2]
[311866705,1705479045879,-500.0,0.00021917,2]
[311866707,1705479045888,-500.0,0.00021917,2]
[311866709,1705479045897,-500.0,0.00021917,2]
[311866711,1705479045907,-1083.18,0.00021917,2]
[311866713,1705479045917,-659.91,0.00021917,2]
[311866715,1705479045926,-1214.49,0.00021917,2]
[311866717,1705479045935,-1092.33,0.00021917,2]
[311866719,1705479045944,-1099.13,0.00021917,2]
[311866721,1705479045954,-1026.62,0.00021917,2]
[311866723,1705479045963,-595.82,0.00021917,2]
[311866725,1705479045973,-1048.68,0.00021917,2]
[311866727,1705479045982,-762.97,0.00021917,2]
[311866729,1705479045992,-500.0,0.00021917,2]
[311866731,1705479046001,-500.0,0.00021917,2]
[311866733,1705479046010,-990.91,0.00021917,2]
[311866735,1705479046019,-895.07,0.00021917,2]
[311866737,1705479046029,-1250.8,0.00021917,2]
[311866739,1705479046040,-500.0,0.00021917,2]
[311866741,1705479046050,-500.0,0.00021917,2]
[311866743,1705479046059,-810.96,0.00021917,2]
[311866745,1705479046068,-500.0,0.00021917,2]
[311866747,1705479046078,-500.0,0.00021917,2]
[311866749,1705479046087,-653.49,0.00021917,2]
[311866751,1705479046096,-500.0,0.00021917,2]
[311866753,1705479046109,-500.0,0.00021917,2]
[311866755,1705479046118,-546.64,0.00021917,2]
[311866757,1705479046127,-643.34,0.00021917,2]
[311866759,1705479046136,-500.0,0.00021917,2]
[311866761,1705479046145,-500.0,0.00021917,2]
[311866763,1705479046155,-1938.2,0.00021917,2]
[311866765,1705479046165,-916.57,0.00021917,2]
[311866767,1705479046175,-1119.37,0.00021917,2]
[311866769,1705479046184,-500.0,0.00021917,2]
[311866771,1705479046195,-500.0,0.00021917,2]
[311866773,1705479046205,-504.78131841,0.00021917,2]
[311866775,1705479046214,-500.0,0.00021917,2]
[311866777,1705479046223,-500.0,0.00021917,2]
[311866779,1705479046232,-500.0,0.00021917,2]
[311866781,1705479046241,-832.1,0.00021917,2]
[311866783,1705479046250,-910.82,0.00021917,2]
[311866785,1705479046259,-1302.28,0.00021917,2]
[311866787,1705479046268,-1324.14,0.00021917,2]
[311866789,1705479046277,-500.0,0.00021917,2]
[311866791,1705479046286,-624.71,0.00021917,2]
[311866793,1705479046296,-360.29683669,0.00021917,2]
[311866795,1705479046305,-500.0,0.00021917,2]
[311866797,1705479046314,-500.0,0.00021917,2]
[311866799,1705479046325,-774.12,0.00021917,2]
[311866801,1705479046334,-500.0,0.00021917,2]
[311866803,1705479046343,-911.6,0.00021917,2]
[311866805,1705479046353,-1218.67,0.00021917,2]
[311866807,1705479046362,-696.45,0.00021917,2]
[311866809,1705479046371,-500.0,0.00021917,2]
[311866811,1705479046381,-667.25,0.00021917,2]
[311866813,1705479046390,-500.0,0.00021917,2]
[311866815,1705479046399,-507.06408399,0.00021917,2]
[311866817,1705479046408,-500.0,0.00021917,2]
[311866819,1705479046419,-1187.8,0.00021917,2]
[311866821,1705479046428,-500.0,0.00021917,2]
[311866823,1705479046437,-500.0,0.00021917,2]
[311866825,1705479046446,-500.0,0.00021917,2]
[311866826,1705479046455,-1104.69,0.00021917,2]
[311866827,1705479046464,-914.69,0.00021917,2]
[311866828,1705479046474,-500.0,0.00021917,2]
[311866829,1705479046484,-762.9,0.00021917,2]
[311866830,1705479046493,-905.45,0.00021917,2]
[311866832,1705479046502,-500.0,0.00021917,2]
[311866833,1705479046512,-790.18,0.00021917,2]
[311866835,1705479046521,-745.14,0.00021917,2]
[311866838,1705479046530,-500.0,0.00021917,2]
[311866840,1705479046539,-1015.69,0.00021917,2]
[311866841,1705479046548,-500.0,0.00021917,2]
[311866843,1705479046557,-500.0,0.00021917,2]
[311866846,1705479046567,-1449.4,0.00021917,2]
[311866848,1705479046576,-500.0,0.00021917,2]
[311866849,1705479046586,-193.0028499,0.00021917,2]
[311866852,1705479046596,-500.0,0.00021917,2]
[311866854,1705479046605,-504.78,0.00021917,2]
[311866856,1705479046614,-997.41,0.00021917,2]
[311866858,1705479046624,-890.18,0.00021917,2]
[311866859,1705479046633,-500.0,0.00021917,2]
[311866861,1705479046644,-500.0,0.00021917,2]
[311866864,1705479046653,-500.0,0.00021917,2]
[311866865,1705479046664,-574.65,0.00021917,2]
[311866868,1705479046675,-500.0,0.00021917,2]
[311866870,1705479046685,-1104.23,0.00021917,2]
[311866872,1705479046695,-614.11787913,0.00021917,2]
[311866874,1705479046705,-856.47,0.00021917,2]
[311866875,1705479046714,-500.0,0.00021917,2]
[311866877,1705479046723,-500.0,0.00021917,2]
[311866880,1705479046733,-500.0,0.00021917,2]
[311866882,1705479046742,-1000.0,0.00021917,2]
[311866884,1705479046752,-500.0,0.00021917,2]
[311866886,1705479046762,-500.0,0.00021917,2]
[311866888,1705479046772,-220.22610939,0.00021917,2]
[311866889,1705479046781,-540.91,0.00021917,2]
[311866891,1705479046791,-500.0,0.00021917,2]
[311866893,1705479046801,-864.81,0.00021917,2]
[311866896,1705479046811,-918.57,0.00021917,2]
[311866898,1705479046821,-500.0,0.00021917,2]